Cogmind - Beta 15 @@@ ROGUE MODE // 2025.06.28 @ 20:32:37 Player: Evie Result: Destroyed by YI-UF0 with YI-UF0's Doublenader Performance ------------- Evolutions (0) 0 Regions Visited (2) 400 Robots Destroyed (17) 85 Value Destroyed (227) 227 Prototype IDs (0) 0 Alien Tech Used (0) 0 Bonus (0) 0 TOTAL SCORE: 712 Bonus ------- None Cogmind --------- Core Integrity 0/250 Matter 281/300 Energy 67/100 System Corruption 0% Temperature Cool (0) Movement Core (150) Ox2 Location -10/Mines Parts ------- > --- POWER (1) -------- (None) > --- PROPULSION (2) --- (None) > --- UTILITY (2) ------ Large Storage Unit Weight Redist. System > --- WEAPON (2) ------- Small Laser Assault Rifle > --- INVENTORY (15) --- Ion Engine Light Ion Engine Aluminum Leg Aluminum Leg Improved Aluminum Leg Improved Aluminum Leg Large Storage Unit Mining Claw Peak State ------------ > --- POWER ------------ Ion Engine > --- PROPULSION ------- Improved Aluminum Leg Improved Aluminum Leg > --- UTILITY ---------- Medium Storage Unit Weight Redist. System > --- WEAPON ----------- EM Pulse Gun Assault Rifle > --- INVENTORY -------- Ion Engine Aluminum Leg Aluminum Leg Improved Aluminum Leg Improved Aluminum Leg Large Storage Unit Large Storage Unit Small Laser Mining Claw [Rating: 11] Favorites ----------- Power Ion Engine Engine Ion Engine Propulsion Improved Aluminum Leg Leg Improved Aluminum Leg Utility Weight Redist. System Device Weight Redist. System Storage Large Storage Unit Weapon Assault Rifle Energy Gun EM Pulse Gun Ballistic Gun Assault Rifle Launcher Grenade Launcher Slashing Weapon Mining Claw Build | -11 -10 -10 ------- Run | Yrd Mat Min Slots Evolved . | . . . Power . | . . . Propulsion . | . . . Utility . | . . . Weapon . | . . . Parts Attached 14 | 5 7 2 Power 1 | . 1 . Engine 1 | . 1 . Core . | . . . Reactor . | . . . Propulsion 4 | 2 2 . Treads . | . . . Leg 4 | 2 2 . Wheel . | . . . Hover . | . . . Flight . | . . . Utility 4 | 1 3 . Device 1 | . 1 . Storage 3 | 1 2 . Processor . | . . . Hackware . | . . . Protection . | . . . Artifact . | . . . Weapon 5 | 2 1 2 Energy Gun 2 | 1 . 1 Energy Cannon . | . . . Ballistic Gun 1 | 1 . . Ballistic Cannon . | . . . Launcher 1 | . . 1 Special Weapon . | . . . Impact Weapon . | . . . Slashing Weapon 1 | . 1 . Piercing Weapon . | . . . Special Melee Weapon . | . . . Unidentified Prototypes . | . . . Parts Lost 5 | . . 5 Power 1 | . . 1 Propulsion 2 | . . 2 Utility . | . . . Weapon 2 | . . 2 Highest Loss Streak 4 | . . 4 To Critical Strikes . | . . . Average Backups 7 | 3 7 8 Power 1 | 1 1 1 Propulsion 3 | 1 3 4 Utility 1 | . 1 1 Weapon 1 | . 1 1 Tool/Special . | . . . Unused Backups 7 | . 2 5 Power 2 | . . 2 Propulsion 4 | . 2 2 Utility 1 | . . 1 Weapon . | . . . Tool/Special . | . . . Average Slot Usage (%) 95 | . 93 97 Engine 13 | . 14 13 Leg 27 | . 28 26 Device 10 | . 7 14 Storage 14 | . 14 14 Energy Gun 13 | . 14 13 Ballistic Gun 13 | . 12 14 Peak Build Rating 11 | 5 11 11 Average Rating 9 | 4 8 10 On Entrance 5 | . 5 11 Naked Turns . | . . . Heaviest Build 29 | 9 29 29 Greatest Support 32 | 20 32 32 Greatest Overweight (x) 1 | . . 1 Average Overweight (x) . | . . . Largest Inventory Capacity 15 | 8 15 15 Average Capacity 13 | 7 12 15 Most Carried 10 | 5 10 9 Average Carried 7 | 3 7 8 Final Capacity 15 | 8 15 15 Final Carried 8 | 5 8 8 Class Distribution -------------------- 100% | Mutant Dominant Class ---------------- Mutant | -10/Materials Mutant | -10/Mines Resources | -11 -10 -10 ----------- Run | Yrd Mat Min Matter Collected 465 | 145 248 72 Remotely . | . . . Salvage Created 493 | 60 295 138 Parts 33 | 2 22 9 Haulers Intercepted 1 | . 1 . Recyclers Shooed . | . . . Parts Field Recycled . | . . . Retrieved Matter . | . . . Parts Self-Destructed . | . . . Prevented . | . . . Kills | -11 -10 -10 ------- Run | Yrd Mat Min Combat Hostiles Destroyed 12 | . 7 5 Melee 1 | . 1 . Guns 9 | . 4 5 AOE 2 | . 2 . Classes Destroyed 6 | 1 5 . Worker 1 | . 1 . Tunneler 1 | . 1 . Hauler 1 | . 1 . Recycler 2 | 1 1 . Swarmer 9 | . 6 3 Grunt 3 | . 1 2 Best Kill Streak 6 | 1 6 3 Combat Bots Only 6 | . 6 3 Max Kills in Single Turn 2 | 1 2 1 Gunslinging . | . . . Exploded 2 | . 2 . Melee 1 | . 1 . Uniques/NPCs Destroyed . | . . . Combat | -11 -10 -10 -------- Run | Yrd Mat Min Hostile Shots Fired 83 | . 33 50 Missed 22 | . 10 12 Hits 61 | . 23 38 Projectile 61 | . 23 38 AOE 9 | . . 9 Critical Strikes 3 | . 1 2 Damage Taken 832 | . 196 636 Core 251 | . 68 183 Absorbed by Shields . | . . . Core Remaining (%) 100 | 100 . . Volleys Fired 49 | 4 21 24 Largest 2 | 2 2 2 Hottest 70 | 60 60 70 Shots Fired 92 | 8 39 45 Gun 91 | 8 39 44 Cannon . | . . . Launcher 1 | . . 1 Special . | . . . Kinetic 44 | 4 18 22 Thermal 6 | . . 6 Explosive 1 | . . 1 Electromagnetic 41 | 4 21 16 Robot Hit Streak 8 | 3 6 8 Robot Miss Streak 3 | 2 3 3 Penetration Max . | . . . Secondary Targets 1 | . 1 . Max Gunslinging Chain 1 | . 1 . Shots Hit Robots 58 | 5 26 27 Core Hits 25 | 2 14 9 Critical Kills . | . . . Critical Parts Destroyed . | . . . Critical Strikes . | . . . Melee Attacks 3 | . 3 . Impact . | . . . Slashing 3 | . 3 . Piercing . | . . . Sneak Attacks 1 | . 1 . Combat Hostiles . | . . . Follow-up Attacks . | . . . Damage Inflicted 855 | 81 445 329 Guns 674 | 60 285 329 Cannons . | . . . Explosions 96 | 21 75 . Melee 66 | . 66 . Ramming 19 | . 19 . Kinetic 316 | 23 110 183 Thermal 129 | 21 75 33 Explosive . | . . . Electromagnetic 325 | 37 175 113 Impact . | . . . Slashing 66 | . 66 . Piercing . | . . . Highest Corruption . | . . . Average Corruption . | . . . Corruption Purged . | . . . Corruption Blocked . | . . . Overload Shots . | . . . Overflow Damage . | . . . Projectiles . | . . . Explosions . | . . . Melee . | . . . Knockbacks . | . . . Impact . | . . . Kinetic . | . . . Secondary . | . . . Self-Inflicted Damage 31 | . 9 22 Shots 2 | . 1 1 Rammed . | . . . Targets Rammed 1 | . 1 . Kicked 1 | . 1 . Crushed . | . . . Highest Temperature 123 | . 18 123 Average Temperature 63 | . 11 76 Received Heat Transfer 147 | . 24 123 Siege Activations . | . . . Martial Activations . | . . . Shielding Activations . | . . . Robots Disrupted . | . . . Combat Hostiles . | . . . Robots Corrupted . | . . . Combat Hostiles . | . . . Parts Fried . | . . . Impact Corruptions . | . . . Robots Melted . | . . . Combat Hostiles . | . . . Parts Melted . | . . . Heat Transferred 175 | 50 50 75 Parts Sabotaged . | . . . Parts Stolen . | . . . Parts Stripped . | . . . Power Chain Reactions 2 | 1 1 . Alert | -11 -10 -10 ------- Run | Yrd Mat Min Maximum Alert Level . | . . . Low Security (%) 100 | 100 100 100 Level 1 . | . . . Level 2 . | . . . Level 3 . | . . . Level 4 . | . . . Level 5 . | . . . High Security . | . . . Max Security . | . . . Peak Influence 154 | 5 154 91 Initial 21 | . . 21 Average 62 | . 84 47 Influence Increases 354 | 5 226 123 Destroy 0b10 Robot/C 240 | . 140 100 Destroy 0b10 Robot/NC 25 | 5 20 . Destroy Leader 52 | . 32 20 Destroy Structure 7 | . 4 3 Lose Combat Pursuer 30 | . 30 . Influence Decreases 354 | 5 170 179 Entered New Map 35 | . . 35 Time Decay 295 | 5 170 120 Lost Part 24 | . . 24 Squads Dispatched 1 | . 1 . Investigation 1 | . 1 . Extermination . | . . . Reinforcement . | . . . Assault . | . . . Garrison . | . . . Intercept . | . . . Searches Triggered . | . . . Construction Impeded . | . . . Haulers Reinforced . | . . . Active Scanning Responses . | . . . Cargo Convoy Interrupts . | . . . Stealth | -11 -10 -10 --------- Run | Yrd Mat Min Distress Signals 1 | . 1 . Communications Jammed . | . . . Distress Signals . | . . . Times Spotted 16 | . 10 6 Peak Tracking Total 7 | . 7 3 Tactical Retreats 1 | . 1 . Traps | -11 -10 -10 ------- Run | Yrd Mat Min Traps Triggered . | . . . Indirectly . | . . . Trap Hack Attempts . | . . . Triggered . | . . . Disarmed . | . . . Reprogrammed . | . . . Reused . | . . . Traps Extracted . | . . . Installed . | . . . Triggered . | . . . Machines | -11 -10 -10 ---------- Run | Yrd Mat Min Machines Disabled . | . . . Max in Single Turn . | . . . Machines Repaired . | . . . Machines Dismantled . | . . . Machines Sabotaged . | . . . Overloaded Fab Kills . | . . . Hacking | -11 -10 -10 --------- Run | Yrd Mat Min Machines Accessed 1 | . 1 . Terminals . | . . . Fabricators . | . . . Repair Stations 1 | . 1 . Recycling Units . | . . . Scanalyzers . | . . . Garrison Access . | . . . Total Hacks 2 | . 2 . Successful 1 | . 1 . Failed 1 | . 1 . Catastrophic . | . . . Database Lockouts . | . . . Manual 2 | . 2 . Terminals . | . . . Fabricators . | . . . Repair Stations 2 | . 2 . Recycling Units . | . . . Scanalyzers . | . . . Garrison Access . | . . . Terminal Hacks . | . . . Fabricator Hacks . | . . . Repair Station Hacks . | . . . Recycling Unit Hacks . | . . . Scanalyzer . | . . . Garrison Access Hacks . | . . . Unauthorized Hacks 1 | . 1 . Terminals . | . . . Fabricators . | . . . Repair Stations 1 | . 1 . Patch 1 | . 1 . Recycling Units . | . . . Scanalyzers . | . . . Garrison Access . | . . . Data Cores Recovered . | . . . Used . | . . . Hacking Detections . | . . . Full Trace Events . | . . . Feedback Events . | . . . Feedback Blocked . | . . . Robot Schematics Acquired . | . . . Robots Built . | . . . Authchips . | . . . Time . | . . . Total Robot Build Rating . | . . . Part Schematics Acquired . | . . . Parts Built . | . . . Authchips . | . . . Time . | . . . Total Part Build Rating . | . . . Parts Repaired . | . . . Time . | . . . Parts Recycled . | . . . Recycled Matter . | . . . Retrieved Matter . | . . . Retrieved Components . | . . . Parts Scanalyzed . | . . . Part Schematics Acquired . | . . . Parts Damaged . | . . . Bothacking | -11 -10 -10 ------------ Run | Yrd Mat Min Used RIF Installer . | . . . Robots Hacked . | . . . Non-combat . | . . . Combat . | . . . Robot Hacks Applied . | . . . Relay Couplers Released . | . . . Fabnet Peak Effective % . | . . . Robots Rewired . | . . . Allies Hacked . | . . . Hacks Repelled . | . . . Allies | -11 -10 -10 -------- Run | Yrd Mat Min Total Allies . | . . . Largest Group . | . . . Highest-Rated Group . | . . . Highest-Rated Ally . | . . . Total Orders . | . . . Ally Attacks . | . . . Total Damage . | . . . Kills . | . . . Allies Corrupted . | . . . Allies Melted . | . . . Intel | -11 -10 -10 ------- Run | Yrd Mat Min Active Infowar (turns) . | . . . Robot Analysis Total . | . . . Derelict Logs Recovered . | . . . Drone Launches . | . . . Drone Recoveries . | . . . Exploration | -11 -10 -10 ------------- Run | Yrd Mat Min Turns Passed 720 | 75 386 259 Spaces Moved 418 | 46 221 151 Core 9 | 9 . . Treads . | . . . Legs 409 | 37 221 151 Wheels . | . . . Hover . | . . . Flight . | . . . Fastest Speed 50 | 50 120 120 Average Speed 118 | 106 120 120 Slowest Speed 190 | 120 120 190 Overloaded Moves . | . . . Propulsion Burnouts . | . . . Robots Hopped . | . . . Potential Cave-ins . | . . . Cave-ins Triggered . | . . . Exploration Rate (%) 19 | 4 32 21 Regions Visited 2 Branch Regions 1 Pre-discovered Areas . | . . . Known Exits Taken . | . . . Unknown Exits Taken 2 | 1 1 . Scrap Searched . | . . . Spaces Dug 11 | . . 11 Terrain Destroyed 22 | 8 3 11 Melee . | . . . Projectile . | . . . AOE 22 | 8 3 11 Terrain Rammed . | . . . Walls Destroyed . | . . . Machines Disabled . | . . . Actions | -11 -10 -10 --------- Run | Yrd Mat Min Total 545 | 64 296 185 Wait 30 | . 28 2 Move 416 | 45 220 151 Hop . | . . . Pick Up 23 | 10 10 3 Fast Attach . | . . . Attach 11 | 5 3 3 Detach . | . . . Swap 6 | . 5 1 Drop 6 | . 5 1 Fire 49 | 4 21 24 Melee 3 | . 3 . Ram . | . . . Kick 1 | . 1 . Crush . | . . . Escape Stasis . | . . . Rewire . | . . . Trap . | . . . Miscellaneous . | . . . Route ------- -11/Scrapyard -10/Materials -10/Mines History --------- Turn | Location | Event 21 | -11/Scrapyard | Discovered new exit (range 15) 76 | -11/Scrapyard | Entered Materials 306 | -10/Materials | Build established: Mutant 457 | -10/Materials | Discovered new exit (range 5) 462 | -10/Materials | Entered Mines 493 | -10/Mines | YI-UF0 nonchalantly dropped a Grenade Launcher on the ground 713 | -10/Mines | Core integrity fell below 50% 720 | -10/Mines | Core integrity fell below 20% 721 | -10/Mines | Destroyed by YI-UF0 with YI-UF0's Doublenader Last Messages --------------- S-10 Pest destroyed. T-07 Excavator destroyed. EM Pulse Gun destroyed. S-10 Pest destroyed. Acquired 25 matter. Dropped Assault Rifle. Acquired 10 matter. Acquired Assault Rifle. Acquired Lgt. Ion Engine. Acquired 10 matter. R-06 Scavenger collects Corrupted Aluminum Leg. Acquired Grenade Launcher. Acquired 3 matter. Ion Engine destroyed. Imp. Aluminum Leg destroyed. The unstable cave ceiling collapses. YI-UF0 mumbles something. Grenade Launcher destroyed. Imp. Aluminum Leg destroyed. R-06 Scavenger collects Corrupted Aluminum Leg. Map ----- +----------------------------------------------------+ | ?????????????????????????????????????????????????? | | ?????????????????????????????????????????????????? | | ?????????????????????????????????????????????????? | | ?????????????????????????????????????????????????? | | ?????????????????????????????????????????????????? | | ?????????????????????????????????????????????????? | | ?????????????????????????????????????????????????? | | ?????????????????????????????????????????????????? | | ?????????????????????????????????????????????????? | | ?????????????????????????????????????????????????? | | ?????????????????????????????????????????????????? | | ?????????????????????????????????????????????????? | | ??????????????????????????#?######???????????????? | | ?????????????????????????? # # ??????????????? | | ?????????????????????????? ???????????????? | | ?????????????????????????## ????????????????? | | ????????????????????????## ????????????????? | | ???????????????????????## * r ?????????????????? | | ??????????????????????? *% ??????????????????? | | ???????????????????????? = #??????????????????? | | ???????????????????????? g #??????????????????? | | ?????????????????????#### # ##?????????????????? | | ?????????????????????# #?????????????????? | | ?????????????????????# #?????????????????? | | ?????????????????????# #?????????????????? | | ?????????????????????# @ #?????????????????? | | ??????????????????# #?????????????????? | | ??????????????????# ##?????????????????? | | ??????????????????# # #??????????????????? | | ??????????????????# # # ###??????????????????? | | ??????????????????# #### ####????????????????????? | | ??????????????????# #??# #???????????????????????? | | ??????????????????# #??# #???????????????????????? | | ??????????????????# #??# #???????????????????????? | | ??????????????????# #??# #???????????????????????? | | ?????????????????## #?## ##??????????????????????? | | ????????????????## ### ##?????????????????????? | | ???????????????## % ##????????????????????? | | ???????????????# #????#####???????????? | | ???????????????# % ###### ##??????????? | | ???????????????## ### #??????????? | | ????????????????## ##?# ###### #??????????? | | ?????????????????####??# ###????# ##??????????? | | ???????????????????????# #??????# ##???????????? | | ???????????????????????# #?????# #????????????? | | ???????????????????????# #?????# #????????????? | | ???????????????????????# #?????## ##????????????? | | ??????????????????###### #??????####?????????????? | | ???????????####???# #???????????????????????? | | ??????????## ##??# ######???????????????????????? | +----------------------------------------------------+ Best States ------------- Heat Dissipation 25 Energy Generation 10 Energy Capacity 250 Matter Stores 300 Matter Capacity 300 Sight Range 16 Terrain Scan Density 10 Additional Mass Support 6 Evasion (%) 55 Item Schematics ----------------- None Robot Schematics ------------------ None Fabricated ------------ Nothing Repaired ---------- Nothing Alien Tech Used ----------------- None Achievements -------------- Brute Force Challenges ------------ None Game ------ Seed ComponentDecoyFalx Manual? 0 Play Time 00:09:44 Cumulative 3.8 hours Start 2025.06.28 @ 20:25:13 End 2025.06.28 @ 20:32:37 Sessions 1 Manual Loads 0 Difficulty Rogue Special Mode None Game No. 7 Rogue 7 Adventurer 0 Explorer 0 Win Type - Total 0 Types 0/0/0/0/0/0/0/0/0/0 Lore% 10 Gallery% 5 Achievement% 6 Wizard Run 0 Options --------- Layout 1 ASCII 0 Keyboard 0 Movement Mouse Keybinds 0 Fullscreen 1 Font 32/SmallcapsGlow Map View 50x35 Zoom Use 0% Tactical HUD 0 Map Filters NONE Filters NONE Steam 1 RUN: f402bec7-f519-4014-b0ce-8bbc58f85b33